fUST/lending_fUST_20241219
["ID","MTS","AMOUNT","RATE_DAILY","PERIOD"]
[345987741,1734606635940,-150.06,0.00023041,2]
[345987742,1734606635951,-150.06,0.00023041,2]
[345987743,1734606635961,-150.44872058,0.00023041,2]
[345987744,1734606635971,-150.06,0.00023041,2]
[345987745,1734606635981,-3000.0,0.0002305,2]
[345987746,1734606635991,-163.80396574,0.0002305,2]
[345987747,1734606636002,-3000.0,0.0002306,2]
[345987748,1734606636012,-346.7362545,0.00023064,2]
[345987749,1734606636022,-351.9620625,0.00023064,2]
[345987750,1734606636031,-3000.0,0.0002307,2]
[345987751,1734606636041,-500.6468261,0.00023073,2]
[345987752,1734606636051,-500.0,0.00023073,2]
[345987753,1734606636060,-500.0,0.00023073,2]
[345987754,1734606636069,-501.48289657,0.00023073,2]
[345987755,1734606636079,-528.55627394,0.00023073,2]
[345987756,1734606636089,-370.62889545,0.00023073,2]
[345987757,1734606636099,-500.0,0.00023073,2]
[345987758,1734606636108,-500.0,0.00023073,2]
[345987759,1734606636118,-501.242633,0.00023073,2]
[345987760,1734606636127,-230.01495224,0.00023073,2]
[345987761,1734606636137,-434.01602924,0.00023073,2]
[345987762,1734606636147,-500.78808873,0.00023073,2]
[345987763,1734606636156,-381.63254328,0.00023073,2]
[345987764,1734606636166,-3000.0,0.0002308,2]
[345987765,1734606636175,-3000.0,0.0002309,2]
[345987766,1734606636184,-3000.0,0.000231,2]
[345987767,1734606636193,-357.0,0.000231,10]
[345987768,1734606636203,-150.0,0.000231,2]
[345987769,1734606636213,-155.0,0.0002311,7]
[345987770,1734606636223,-3000.0,0.0002311,2]
[345987771,1734606636232,-3000.0,0.0002312,2]
[345987772,1734606636242,-3000.0,0.0002313,2]
[345987773,1734606636251,-3000.0,0.0002314,2]
[345987774,1734606636261,-6069.78398194,0.00023143,2]
[345987775,1734606636271,-142516.89135965,0.00023146,2]
[345987776,1734606636281,-3000.0,0.0002315,2]
[345987777,1734606636290,-3000.0,0.0002316,2]
[345987778,1734606636299,-3000.0,0.0002317,2]
[345987779,1734606636308,-3000.0,0.0002318,2]
[345987780,1734606636318,-152.03,0.00023187,2]
[345987781,1734606636329,-3000.0,0.0002319,2]
[345987782,1734606636339,-3000.0,0.000232,2]
[345987783,1734606636349,-3000.0,0.0002321,2]
[345987784,1734606636358,-4073.59653892,0.00023216,2]
[345987785,1734606636368,-3000.0,0.0002322,2]
[345987786,1734606636378,-3000.0,0.0002323,2]
[345987787,1734606636388,-3000.0,0.0002324,2]
[345987788,1734606636398,-154.25886676,0.00023247,2]
[345987789,1734606636407,-3000.0,0.0002325,2]
[345987790,1734606636417,-3000.0,0.0002326,2]
[345987791,1734606636427,-500.0,0.00023265,2]
[345987792,1734606636436,-500.0,0.00023265,2]
[345987793,1734606636446,-194.97946008,0.00023265,2]
[345987794,1734606636455,-609.89659467,0.00023265,2]
[345987795,1734606636465,-500.0,0.00023265,2]
[345987796,1734606636474,-3000.0,0.0002327,2]
[345987797,1734606636484,-1205.48789996,0.00023276,2]
[345987798,1734606636493,-3000.0,0.0002328,2]
[345987799,1734606636502,-1538.34,0.00023287,4]
[345987800,1734606636512,-3000.0,0.0002329,2]
[345987801,1734606636521,-219.0,0.0002329,10]
[345987802,1734606636531,-3000.0,0.000233,2]
[345987803,1734606636541,-3000.0,0.0002331,2]
[345987804,1734606636550,-579.91507349,0.00023315,2]
[345987805,1734606636560,-151.38543705,0.00023315,2]
[345987806,1734606636569,-151.98343227,0.00023315,2]
[345987807,1734606636579,-150.06,0.00023315,2]
[345987808,1734606636590,-3000.0,0.0002332,2]
[345987809,1734606636599,-3000.0,0.0002333,2]
[345987810,1734606636609,-501.75273674,0.00023338,2]
[345987811,1734606636618,-3000.0,0.0002334,2]
[345987812,1734606636628,-3000.0,0.0002335,2]
[345987813,1734606636637,-3000.0,0.0002336,2]
[345987814,1734606636647,-3000.0,0.0002337,2]
[345987815,1734606636658,-3000.0,0.0002338,2]
[345987816,1734606636667,-3000.0,0.0002339,2]
[345987817,1734606636677,-3000.0,0.000234,2]
[345987818,1734606636686,-3000.0,0.0002341,2]
[345987819,1734606636696,-3000.0,0.0002342,2]
[345987820,1734606636706,-3000.0,0.0002343,2]
[345987821,1734606636715,-4240.427167,0.0002344,2]
[345987822,1734606636725,-3147.8,0.000235,60]
[345987823,1734606636735,-73315.06,0.000235,4]
[345987824,1734606636749,-4073.59653892,0.00023503,2]
[345987825,1734606636759,-169.92,0.0002351,2]
[345987826,1734606636768,-156.0,0.0002351,2]
[345987827,1734606636779,-156.0,0.0002351,2]
[345987828,1734606636789,-156.0,0.0002351,2]
[345987829,1734606636799,-156.0,0.0002351,2]
[345987830,1734606636808,-156.0,0.0002351,2]
[345987831,1734606636819,-156.0,0.0002351,2]
[345987832,1734606636829,-156.0,0.0002351,2]
[345987833,1734606636841,-156.0,0.0002351,2]
[345987834,1734606636851,-156.0,0.0002351,2]
[345987835,1734606636862,-156.0,0.0002351,2]
[345987836,1734606636872,-156.0,0.0002351,2]
[345987837,1734606636882,-156.0,0.0002351,2]
[345987838,1734606636891,-156.0,0.0002351,2]
[345987839,1734606636901,-156.0,0.0002351,2]
[345987840,1734606636911,-156.0,0.0002351,2]
[345987841,1734606636920,-156.0,0.0002351,2]
[345987842,1734606636930,-292.76,0.0002351,2]
[345987843,1734606636940,-221.955798,0.00023562,2]
[345987844,1734606636950,-150.06,0.00023589,2]
[345987845,1734606636959,-562.84603153,0.00023621,2]
[345987846,1734606636969,-513.67419296,0.00023621,2]
[345987847,1734606636982,-1000.0,0.00023621,2]
[345987848,1734606636992,-1000.0,0.00023621,2]
[345987849,1734606637002,-150.0,0.00023635,2]
[345987850,1734606637011,-150.0,0.00023635,2]
[345987851,1734606637021,-150.0,0.00023635,2]
[345987852,1734606637030,-533.0,0.00023635,2]
[345987853,1734606637040,-2149.0,0.00023635,2]
[345987854,1734606637050,-2366.0,0.00023635,2]
[345987855,1734606637060,-666.0,0.00023662,2]
[345987856,1734606637069,-153.0,0.00023762,2]
[345987857,1734606637079,-153.0,0.00023762,2]
[345987858,1734606637090,-153.0,0.00023762,2]
[345987859,1734606637099,-153.0,0.00023762,2]
[345987860,1734606637108,-153.0,0.00023762,2]
[345987861,1734606637117,-153.0,0.00023762,2]
[345987862,1734606637129,-153.0,0.00023762,2]
[345987863,1734606637139,-153.0,0.00023762,2]
[345987864,1734606637148,-153.0,0.00023762,2]
[345987865,1734606637157,-153.0,0.00023762,2]
[345987866,1734606637167,-153.0,0.00023762,2]
[345987867,1734606637176,-153.0,0.00023762,2]
[345987868,1734606637185,-153.0,0.00023762,2]
[345987869,1734606637195,-153.0,0.00023762,2]
[345987870,1734606637204,-153.0,0.00023762,2]
[345987871,1734606637214,-153.0,0.00023762,2]
[345987872,1734606637224,-153.0,0.00023762,2]
[345987873,1734606637233,-153.0,0.00023762,2]
[345987874,1734606637243,-153.0,0.00023762,2]
[345987875,1734606637252,-153.0,0.00023762,2]
[345987876,1734606637262,-153.0,0.00023762,2]
[345987877,1734606637272,-153.0,0.00023762,2]
[345987878,1734606637281,-153.0,0.00023762,2]
[345987879,1734606637291,-153.0,0.00023762,2]
[345987880,1734606637300,-153.0,0.00023762,2]
[345987881,1734606637309,-153.0,0.00023762,2]
[345987882,1734606637323,-153.0,0.00023762,2]
[345987883,1734606637332,-153.0,0.00023762,2]
[345987884,1734606637346,-151.0,0.00023766,2]
[345987885,1734606637355,-4073.59653892,0.00023789,2]
[345987886,1734606637365,-1000.0,0.00023813,2]
[345987887,1734606637374,-664.33316333,0.00023813,2]
[345987888,1734606637384,-1043.59966977,0.00023813,2]
[345987889,1734606637394,-1500.0,0.00023825,2]
[345987890,1734606637403,-150.06,0.00023863,2]
[345987891,1734606637413,-2500.0,0.0002395,2]
[345987892,1734606637423,-985.0,0.00024,2]
[345987893,1734606637432,-34305.76531673,0.00024,4]
[345987894,1734606637442,-4000.0,0.00024,2]
[345987895,1734606637452,-671.15,0.00024,2]
[345987896,1734606637461,-112282.49236262,0.00024,2]
[345987897,1734606637472,-150.0,0.00024,2]
[345987898,1734606637482,-4073.59653892,0.00024075,2]
[345987899,1734606637491,-150.06,0.00024137,2]
[345987900,1734606637501,-299.0,0.00024164,2]
[345987901,1734606637511,-1013.27658166,0.00024306,2]
[345987902,1734606637521,-2103.0,0.0002433,15]
[345987903,1734606637531,-150.06,0.00024343,2]
[345987904,1734606637540,-138525.0,0.0002436,7]
[345987905,1734606637550,-4073.59653892,0.00024362,2]
[345987906,1734606637559,-1205.48789996,0.00024392,2]
[345987907,1734606637568,-1214.51917369,0.000244,7]
[345987908,1734606637578,-1214.51917369,0.000244,7]
[345987909,1734606637588,-1214.51917369,0.000244,7]
[345987910,1734606637598,-219.12242284,0.00024411,2]
[345987911,1734606637608,-167.0,0.00024454,2]
[345987912,1734606637618,-160.0,0.00024454,2]
[345987913,1734606637628,-160.0,0.00024454,2]
[345987914,1734606637637,-160.0,0.00024454,2]
[345987915,1734606637647,-160.0,0.00024454,2]
[345987916,1734606637657,-160.0,0.00024454,2]
[345987917,1734606637667,-160.0,0.00024454,2]
[345987918,1734606637676,-160.0,0.00024454,2]
[345987919,1734606637686,-160.0,0.00024454,2]
[345987920,1734606637696,-160.0,0.00024454,2]
[345987921,1734606637705,-160.0,0.00024454,2]
[345987922,1734606637715,-160.0,0.00024454,2]
[345987923,1734606637725,-160.0,0.00024454,2]
[345987924,1734606637735,-4861.64985676,0.00024457,2]
[345987926,1734606637750,-184.1348901,0.000245,5]
[345987927,1734606637759,-345.9340741,0.000245,10]
[345987928,1734606637770,-916.23882855,0.000245,7]
[345987929,1734606637782,-1320.55730883,0.00024528,2]
[345987930,1734606637791,-1000.0,0.000246,2]
[345987931,1734606637800,-1000.0,0.000246,3]
[345987933,1734606637811,-3982.7262536,0.000246,7]
[345987934,1734606637823,-357.0,0.000246,11]
[345987935,1734606637832,-1007.0473902,0.00024622,2]
[345987936,1734606637845,-1500.0,0.00024622,2]
[345987937,1734606637855,-4073.59653892,0.00024648,2]
[345987938,1734606637864,-29910.42198147,0.00024657,3]
[345987939,1734606637874,-500.0,0.00024657,6]
[345987940,1734606637884,-305.91873109,0.00024657,6]
[345987941,1734606637896,-501.00726985,0.00024657,6]
[345987942,1734606637906,-504.79860474,0.00024657,6]
[345987943,1734606637915,-500.0,0.00024657,6]
[345987944,1734606637925,-500.0,0.00024657,6]
[345987945,1734606637935,-156.26213985,0.00024657,6]
[345987946,1734606637945,-510.192008,0.00024657,6]
[345987947,1734606637954,-500.0,0.00024657,6]
[345987948,1734606637964,-501.00844084,0.00024657,6]
[345987949,1734606637973,-507.15373916,0.00024657,6]
[345987950,1734606637983,-504.83257858,0.00024657,6]
[345987952,1734606637992,-500.0,0.00024657,6]
[345987954,1734606638002,-501.72081022,0.00024657,6]
[345987955,1734606638012,-505.93500602,0.00024657,6]
[345987957,1734606638021,-502.65698957,0.00024657,6]
[345987959,1734606638031,-152.41506417,0.00024657,6]
[345987960,1734606638040,-504.34147701,0.00024657,6]
[345987962,1734606638050,-260.61291327,0.00024657,6]
[345987963,1734606638060,-504.09511978,0.00024657,6]
[345987965,1734606638070,-514.23785782,0.00024657,6]
[345987967,1734606638080,-503.72020148,0.00024657,6]
[345987969,1734606638094,-275.44507656,0.00024657,2]
[345987970,1734606638103,-503.24302835,0.00024657,6]
[345987971,1734606638114,-503.03409272,0.00024657,6]
[345987972,1734606638124,-415.90225788,0.00024657,2]
[345987973,1734606638134,-505.76375395,0.00024657,6]
[345987974,1734606638144,-506.10611009,0.00024657,6]
[345987975,1734606638154,-514.97941782,0.00024657,6]
[345987976,1734606638164,-507.12671176,0.00024657,6]
[345987977,1734606638173,-509.47701868,0.00024657,6]
[345987978,1734606638183,-506.16065026,0.00024657,6]
[345987979,1734606638193,-508.32602298,0.00024657,6]
[345987980,1734606638203,-509.23727793,0.00024657,6]
[345987981,1734606638213,-500.0,0.00024657,6]
[345987982,1734606638222,-510.81692159,0.00024657,6]
[345987983,1734606638232,-379.82069035,0.00024657,6]
[345987984,1734606638243,-500.0,0.00024657,6]
[345987985,1734606638252,-504.64736911,0.00024657,6]
[345987986,1734606638262,-505.58892917,0.00024657,6]
[345987987,1734606638271,-500.0,0.00024657,6]
[345987988,1734606638281,-500.0,0.00024657,6]
[345987989,1734606638290,-500.0,0.00024657,6]
[345987990,1734606638299,-508.00754326,0.00024657,6]
[345987991,1734606638309,-510.3077897,0.00024657,6]
[345987992,1734606638319,-511.58264336,0.00024657,6]
[345987993,1734606638328,-500.0,0.00024657,2]
[345987994,1734606638339,-500.0,0.00024657,6]
[345987995,1734606638379,-500.0,0.00024657,2]
[345987996,1734606638388,-500.0,0.00024657,6]
[345987997,1734606638398,-500.0,0.00024657,6]
[345987998,1734606638408,-507.96656313,0.00024657,6]
[345987999,1734606638418,-500.0,0.00024657,6]
[345988000,1734606638428,-507.85593251,0.00024657,6]
[345988001,1734606638437,-502.65229238,0.00024657,6]
[345988002,1734606638446,-806.37,0.00024657,6]
[345988003,1734606638457,-509.78900616,0.00024657,6]
[345988004,1734606638469,-504.43449781,0.00024657,6]
[345988005,1734606638479,-513.37515361,0.00024657,6]
[345988006,1734606638488,-503.64497213,0.00024657,6]
[345988007,1734606638498,-500.0,0.00024657,6]
[345988008,1734606638507,-506.82971949,0.00024657,6]
[345988009,1734606638516,-503.37186691,0.00024657,6]
[345988010,1734606638526,-510.42898501,0.00024657,6]
[345988011,1734606638536,-510.02159042,0.00024657,6]
[345988012,1734606638546,-784.46,0.00024657,6]
[345988013,1734606638555,-150.0,0.00024657,6]
[345988014,1734606638565,-507.96656273,0.00024657,6]
[345988015,1734606638575,-500.0,0.00024657,6]
[345988016,1734606638585,-168.0,0.00024657,6]
[345988017,1734606638595,-507.67365149,0.00024657,6]
[345988018,1734606638605,-500.0,0.00024657,6]
[345988019,1734606638614,-500.0,0.00024657,6]
[345988020,1734606638624,-862.14,0.00024657,6]
[345988021,1734606638633,-506.5110495,0.00024657,6]
[345988022,1734606638643,-508.21439223,0.00024657,6]
[345988023,1734606638652,-200.0,0.00024657,6]
[345988024,1734606638662,-504.79123295,0.00024657,6]
[345988025,1734606638672,-2332.35,0.00024657,2]
[345988026,1734606638681,-1308.17,0.00024657,6]
[345988027,1734606638691,-3853.69,0.00024657,2]
[345988028,1734606638700,-509.89177561,0.00024657,6]
[345988029,1734606638710,-515.87100974,0.00024657,6]
[345988030,1734606638719,-504.39856558,0.00024657,6]
[345988031,1734606638729,-500.0,0.00024657,6]
[345988032,1734606638741,-639.56,0.00024657,6]
[345988033,1734606638752,-1224.85,0.00024657,6]
[345988034,1734606638762,-500.0,0.00024657,6]
[345988035,1734606638771,-506.01858421,0.00024657,6]
[345988036,1734606638782,-500.0,0.00024657,6]
[345988037,1734606638791,-500.0,0.00024657,6]
[345988038,1734606638799,-500.0,0.00024657,6]
[345988039,1734606638809,-1259.86,0.00024657,6]
[345988040,1734606638819,-503.78296819,0.00024657,6]
[345988041,1734606638830,-500.0,0.00024657,6]
[345988042,1734606638842,-181.63157538,0.00024657,6]
[345988043,1734606638851,-536.08232891,0.00024657,6]
[345988044,1734606638862,-506.79172081,0.00024657,6]
[345988045,1734606638871,-500.0,0.00024657,6]
[345988046,1734606638881,-660.4,0.00024657,6]
[345988047,1734606638892,-500.0,0.00024657,6]
[345988048,1734606638902,-500.0,0.00024657,6]
[345988049,1734606638912,-500.0,0.00024657,6]
[345988050,1734606638921,-500.0,0.00024657,6]
[345988051,1734606638931,-487.18320438,0.00024657,6]
[345988052,1734606638941,-507.09752042,0.00024657,6]
[345988053,1734606638950,-500.0,0.00024657,6]
[345988054,1734606638960,-500.0,0.00024657,6]
[345988055,1734606638970,-500.0,0.00024657,6]
[345988056,1734606638979,-501.41178637,0.00024657,6]
[345988057,1734606638989,-269.37089368,0.00024657,6]
[345988058,1734606638999,-500.0,0.00024657,6]
[345988059,1734606639008,-505.45214999,0.00024657,6]
[345988060,1734606639018,-500.0,0.00024657,6]
[345988061,1734606639028,-500.0,0.00024657,6]
[345988062,1734606639038,-167.88397609,0.00024657,6]
[345988063,1734606639047,-2661.23,0.00024657,6]
[345988064,1734606639057,-500.0,0.00024657,6]
[345988065,1734606639067,-500.0,0.00024657,6]
[345988066,1734606639077,-192.68872543,0.00024657,6]
[345988067,1734606639088,-531.11,0.00024657,6]
[345988068,1734606639098,-356.68405095,0.00024657,6]
[345988069,1734606639107,-500.0,0.00024657,6]
[345988070,1734606639116,-273.36866429,0.00024657,6]
[345988071,1734606639126,-505.48638518,0.00024657,6]
[345988072,1734606639135,-375.38167521,0.00024657,6]
[345988073,1734606639144,-500.0,0.00024657,6]
[345988074,1734606639154,-500.0,0.00024657,6]
[345988075,1734606639163,-1852.91,0.00024657,2]
[345988076,1734606639173,-504.88102653,0.00024657,6]
[345988077,1734606639182,-403.27626247,0.00024657,6]
[345988078,1734606639191,-727.23,0.00024657,6]
[345988079,1734606639200,-500.0,0.00024657,6]
[345988080,1734606639210,-500.0,0.00024657,6]
[345988081,1734606639220,-244.73738252,0.00024657,6]
[345988082,1734606639229,-242.21495165,0.00024657,6]
[345988083,1734606639239,-511.1842226,0.00024657,6]
[345988084,1734606639248,-500.0,0.00024657,6]
[345988085,1734606639258,-509.00837462,0.00024657,6]
[345988086,1734606639267,-390.24810665,0.00024657,6]
[345988087,1734606639276,-179.96995541,0.00024657,6]
[345988088,1734606639286,-500.0,0.00024657,6]
[345988089,1734606639298,-226.31484831,0.00024657,6]
[345988090,1734606639309,-441.9375171,0.00024657,6]
[345988091,1734606639319,-362.87425042,0.00024657,6]
[345988092,1734606639328,-395.99467148,0.00024657,6]
[345988093,1734606639339,-240.66176106,0.00024657,6]
[345988094,1734606639348,-395.09480658,0.00024657,6]
[345988095,1734606639358,-470.23439282,0.00024657,6]
[345988096,1734606639367,-500.0,0.00024657,6]
[345988097,1734606639376,-215.01961403,0.00024657,6]
[345988098,1734606639386,-291.24466023,0.00024657,6]
[345988099,1734606639395,-500.0,0.00024657,6]
[345988100,1734606639405,-510.75923866,0.00024657,6]
[345988101,1734606639414,-500.0,0.00024657,6]
[345988102,1734606639423,-500.0,0.00024657,2]
[345988103,1734606639432,-1376.2,0.00024657,6]
[345988104,1734606639441,-500.0,0.00024657,6]
[345988105,1734606639451,-3441.13,0.00024657,6]
[345988106,1734606639459,-296.59335124,0.00024657,6]
[345988107,1734606639469,-1750.68,0.00024657,6]
[345988108,1734606639478,-609.36,0.00024657,6]
[345988109,1734606639487,-515.74329322,0.00024657,6]
[345988110,1734606639497,-500.0,0.00024657,6]
[345988111,1734606639506,-500.0,0.00024657,6]
[345988112,1734606639516,-6295.78,0.00024657,6]
[345988113,1734606639526,-641.15,0.00024657,6]
[345988114,1734606639535,-500.0,0.00024657,6]
[345988115,1734606639544,-500.0,0.00024657,6]
[345988116,1734606639554,-500.0,0.00024657,6]
[345988117,1734606639563,-500.0,0.00024657,2]
[345988118,1734606639572,-500.0,0.00024657,6]
[345988119,1734606639583,-511.20530345,0.00024657,6]
[345988120,1734606639594,-1538.34,0.00024657,6]
[345988121,1734606639608,-500.0,0.00024657,6]
[345988122,1734606639618,-510.46703154,0.00024657,6]
[345988123,1734606639628,-500.0,0.00024657,6]
[345988124,1734606639638,-11493.46,0.00024657,6]
[345988125,1734606639648,-500.0,0.00024657,6]
[345988126,1734606639658,-8008.96,0.00024657,6]
[345988127,1734606639667,-7951.57,0.00024657,6]
[345988128,1734606639677,-504.93617164,0.00024657,6]
[345988129,1734606639688,-422.60619126,0.00024657,6]
[345988130,1734606639697,-4391.91,0.00024657,6]
[345988131,1734606639707,-943.53,0.00024657,6]
[345988132,1734606639716,-1206.63,0.00024657,6]
[345988133,1734606639726,-507.76909689,0.00024657,6]
[345988134,1734606639736,-585.62,0.00024657,6]
[345988135,1734606639748,-500.0,0.00024657,6]
[345988136,1734606639758,-887.0,0.00024657,6]
[345988138,1734606639768,-500.0,0.00024657,6]
[345988140,1734606639779,-500.0,0.00024657,6]
[345988142,1734606639790,-500.0,0.00024657,6]
[345988144,1734606639799,-998.19,0.00024657,6]
[345988146,1734606639809,-32427.44,0.00024657,6]
[345988147,1734606639820,-500.0,0.00024657,6]
[345988148,1734606639830,-511.36039361,0.00024657,6]
[345988150,1734606639840,-503.38013909,0.00024657,6]
[345988152,1734606639850,-3710.11,0.00024657,6]
[345988155,1734606639860,-398.61416287,0.00024657,6]
[345988156,1734606639870,-500.0,0.00024657,6]
[345988157,1734606639879,-261.42391862,0.00024657,6]
[345988158,1734606639889,-500.0,0.00024657,6]
[345988159,1734606639899,-500.0,0.00024657,6]
[345988160,1734606639910,-501.43499586,0.00024657,6]
[345988161,1734606639919,-500.0,0.00024657,6]
[345988162,1734606639929,-509.22818895,0.00024657,6]
[345988164,1734606639939,-500.0,0.00024657,6]
[345988165,1734606639949,-500.0,0.00024657,6]
[345988166,1734606639959,-500.0,0.00024657,6]
[345988167,1734606639968,-1159.93,0.00024657,6]
[345988168,1734606639977,-688.24,0.00024657,6]
[345988170,1734606639988,-502.99172372,0.00024657,6]
[345988171,1734606639998,-2076.77639297,0.00024657,30]
[345988172,1734606640008,-1000.0,0.00024657,2]
[345988173,1734606640017,-505.59932798,0.00024657,6]
[345988174,1734606640027,-500.0,0.00024657,6]
[345988175,1734606640036,-500.0,0.00024657,6]
[345988176,1734606640046,-365.26543279,0.00024657,6]
[345988177,1734606640056,-3050.5,0.00024657,6]
[345988178,1734606640065,-2688.25,0.00024657,6]
[345988179,1734606640075,-1000.0,0.00024657,2]
[345988180,1734606640084,-13827.35,0.00024657,6]
[345988181,1734606640096,-500.0,0.00024657,6]
[345988182,1734606640106,-500.0,0.00024657,6]
[345988183,1734606640116,-507.41467148,0.00024657,6]
[345988184,1734606640126,-1076.58,0.00024657,2]
[345988185,1734606640135,-509.3130766,0.00024657,6]
[345988186,1734606640145,-500.0,0.00024657,6]
[345988187,1734606640154,-513.02503427,0.00024657,6]
[345988189,1734606640164,-500.0,0.00024657,6]
[345988191,1734606640173,-500.0,0.00024657,6]
[345988192,1734606640183,-912.88,0.00024657,6]
[345988193,1734606640192,-1104.85,0.00024657,6]
[345988194,1734606640201,-500.0,0.00024657,6]
[345988196,1734606640211,-773.44,0.00024657,6]
[345988197,1734606640220,-255.76897009,0.00024657,6]
[345988198,1734606640230,-500.0,0.00024657,6]
[345988199,1734606640241,-508.68531,0.00024657,6]
[345988200,1734606640251,-500.0,0.00024657,6]
[345988201,1734606640261,-500.0,0.00024657,6]
[345988202,1734606640271,-653.81,0.00024657,6]
[345988203,1734606640280,-500.0,0.00024657,6]
[345988204,1734606640289,-500.0,0.00024657,6]
[345988205,1734606640299,-500.0,0.00024657,6]
[345988206,1734606640308,-500.0,0.00024657,6]
[345988207,1734606640318,-502.00991455,0.00024657,6]
[345988208,1734606640327,-500.0,0.00024657,2]
[345988209,1734606640336,-500.0,0.00024657,6]
[345988210,1734606640346,-164.82320398,0.00024657,6]
[345988211,1734606640355,-6950.36,0.00024657,6]
[345988212,1734606640365,-831.88,0.00024657,6]
[345988213,1734606640375,-500.0,0.00024657,2]
[345988214,1734606640384,-500.0,0.00024657,6]
[345988215,1734606640394,-500.0,0.00024657,2]
[345988216,1734606640403,-1728.03,0.00024657,6]
[345988217,1734606640412,-500.0,0.00024657,2]
[345988218,1734606640422,-3111.54,0.00024657,2]
[345988219,1734606640431,-292.99087901,0.00024657,6]
[345988220,1734606640441,-500.0,0.00024657,6]
[345988221,1734606640450,-507.09593426,0.00024657,6]
[345988222,1734606640459,-520.32361659,0.00024657,6]
[345988223,1734606640469,-500.0,0.00024657,2]
[345988224,1734606640480,-20403.29,0.00024657,6]
[345988225,1734606640489,-167.98,0.0002466,7]
[345988226,1734606640499,-500.0,0.00024673,2]
[345988227,1734606640508,-518.17449558,0.00024673,2]
[345988228,1734606640518,-501.30294026,0.00024673,2]
[345988229,1734606640527,-500.0,0.00024673,2]
[345988230,1734606640536,-10303.71666399,0.00024682,2]
[345988231,1734606640546,-168.92,0.00024692,2]
[345988232,1734606640555,-16835.49,0.000247,2]
[345988233,1734606640564,-2369.7,0.000247,14]
[345988234,1734606640574,-1152.0,0.00024764,2]
[345988235,1734606640583,-177.48,0.000248,10]
[345988236,1734606640595,-11156.28561508,0.000248,2]
[345988237,1734606640604,-11156.28561508,0.000248,2]
[345988238,1734606640614,-11156.28561508,0.000248,2]
[345988239,1734606640623,-11156.28561508,0.000248,2]
[345988240,1734606640633,-4301.13622654,0.000248,2]
[345988241,1734606640642,-4301.13622654,0.000248,2]
[345988242,1734606640651,-4301.13622654,0.000248,2]
[345988243,1734606640660,-4301.13622654,0.000248,2]
[345988244,1734606640669,-1500.0,0.00024815,2]
[345988245,1734606640679,-5000.0,0.00024881,7]
[345988246,1734606640688,-2000.0,0.000249,2]
[345988247,1734606640699,-6247.41915267,0.000249,2]
[345988248,1734606640708,-2000.0,0.000249,2]
[345988249,1734606640717,-2500.0,0.00024922,3]
[345988250,1734606640726,-156.0,0.00024923,2]
[345988251,1734606640737,-156.0,0.00024923,2]
[345988252,1734606640748,-190.24,0.00024923,2]
[345988253,1734606640758,-160.98,0.00024927,2]
[345988254,1734606640767,-500.0,0.00024931,6]
[345988255,1734606640778,-500.0,0.00024931,6]
[345988256,1734606640788,-500.0,0.00024931,6]
[345988257,1734606640797,-2500.0,0.00024931,3]
[345988258,1734606640807,-500.0,0.00024931,6]
[345988259,1734606640818,-520.91142233,0.00024931,6]
[345988260,1734606640827,-500.0,0.00024931,6]
[345988261,1734606640837,-413.0184704,0.00024931,6]
[345988262,1734606640847,-500.0,0.00024931,6]
[345988263,1734606640856,-509.65223521,0.00024931,6]
[345988264,1734606640866,-500.0,0.00024931,2]